fUST/lending_fUST_20250716
["ID","MTS","AMOUNT","RATE_DAILY","PERIOD"]
[372423589,1752639041207,-1495.22,0.00023067,2]
[372423590,1752639041216,-497.92,0.00023072,2]
[372423591,1752639041225,-816.94,0.00023072,2]
[372423592,1752639041235,-460.0,0.00023072,2]
[372423593,1752639041247,-151.0,0.000231,9]
[372423594,1752639041258,-151.0,0.000232,7]
[372423595,1752639041267,-500.0,0.00023286,2]
[372423596,1752639041277,-500.0,0.00023286,2]
[372423597,1752639041287,-500.74551756,0.00023286,2]
[372423598,1752639041297,-500.0,0.00023286,2]
[372423599,1752639041307,-500.95998998,0.00023286,2]
[372423600,1752639041317,-500.0,0.00023286,2]
[372423601,1752639041326,-2010.77,0.00023287,2]
[372423602,1752639041335,-460.0,0.00023287,2]
[372423603,1752639041345,-888.46,0.00023287,2]
[372423604,1752639041355,-1511.64,0.00023287,2]
[372423605,1752639041365,-460.0,0.00023287,2]
[372423606,1752639041375,-1064.19,0.00023287,2]
[372423607,1752639041386,-3030.19,0.00023287,2]
[372423608,1752639041396,-985.51,0.00023287,2]
[372423609,1752639041405,-642.56,0.00023287,2]
[372423610,1752639041415,-151.0,0.000233,7]
[372423611,1752639041424,-1000.0,0.000233,2]
[372423612,1752639041434,-21158.76,0.000233,7]
[372423613,1752639041445,-564.477332,0.00023308,2]
[372423614,1752639041456,-932.73494716,0.00023338,2]
[372423615,1752639041466,-460.0,0.00023341,2]
[372423616,1752639041476,-1495.22,0.00023341,2]
[372423617,1752639041486,-497.92,0.00023346,2]
[372423618,1752639041497,-816.94,0.00023346,2]
[372423619,1752639041509,-460.0,0.00023346,2]
[372423620,1752639041523,-1213.75983149,0.00023423,2]
[372423621,1752639041532,-460.0,0.00023475,2]
[372423622,1752639041542,-771.05,0.000235,2]
[372423623,1752639041554,-151.0,0.000235,9]
[372423624,1752639041563,-714.90504998,0.00023505,5]
[372423625,1752639041573,-165.8,0.00023546,2]
[372423626,1752639041582,-2010.77,0.00023561,2]
[372423627,1752639041593,-460.0,0.00023561,2]
[372423628,1752639041603,-888.46,0.00023561,2]
[372423629,1752639041612,-1511.64,0.00023561,2]
[372423630,1752639041622,-460.0,0.00023561,2]
[372423631,1752639041632,-1064.19,0.00023561,2]
[372423632,1752639041641,-3030.19,0.00023561,2]
[372423633,1752639041742,-985.51,0.00023561,2]
[372423634,1752639041753,-642.56,0.00023561,2]
[372423635,1752639041762,-200.0,0.00023561,2]
[372423636,1752639041771,-200.0,0.00023561,2]
[372423637,1752639041781,-200.0,0.00023561,2]
[372423638,1752639041791,-200.0,0.00023561,2]
[372423639,1752639041800,-200.0,0.00023561,2]
[372423640,1752639041809,-200.0,0.00023561,2]
[372423641,1752639041819,-200.0,0.00023561,2]
[372423642,1752639041828,-282.7493984,0.00023561,2]
[372423643,1752639041839,-1004.34967279,0.00023578,2]
[372423644,1752639041849,-460.0,0.00023615,2]
[372423645,1752639041858,-1495.22,0.00023615,2]
[372423646,1752639041867,-497.92,0.0002362,2]
[372423647,1752639041877,-816.94,0.0002362,2]
[372423648,1752639041886,-460.0,0.0002362,2]
[372423649,1752639041895,-172.0,0.00023649,2]
[372423650,1752639041906,-151.0,0.000237,10]
[372423651,1752639041916,-2344.48,0.000237,7]
[372423652,1752639041925,-1282.5,0.000237,7]
[372423653,1752639041934,-429.1687796,0.00023726,2]
[372423654,1752639041944,-429.1687796,0.00023726,2]
[372423655,1752639041954,-429.1687796,0.00023726,2]
[372423656,1752639041964,-429.1687796,0.00023726,2]
[372423657,1752639041975,-429.1687796,0.00023726,2]
[372423658,1752639041984,-429.1687796,0.00023726,2]
[372423659,1752639041994,-1000.0,0.000238,2]
[372423660,1752639042005,-151.0,0.000238,6]
[372423661,1752639042014,-1000.0,0.00023834,2]
[372423662,1752639042024,-504.00220653,0.00023834,2]
[372423663,1752639042035,-501.23142804,0.00023834,2]
[372423664,1752639042044,-1000.0,0.00023834,2]
[372423665,1752639042055,-2010.77,0.00023835,2]
[372423666,1752639042064,-460.0,0.00023835,2]
[372423667,1752639042074,-888.46,0.00023835,2]
[372423668,1752639042084,-1511.64,0.00023835,2]
[372423669,1752639042094,-460.0,0.00023835,2]
[372423670,1752639042103,-1064.19,0.00023835,2]
[372423671,1752639042114,-3030.19,0.00023835,2]
[372423672,1752639042123,-985.51,0.00023835,2]
[372423673,1752639042133,-642.56,0.00023835,2]
[372423674,1752639042144,-500.0,0.00023878,2]
[372423675,1752639042155,-1213.75983149,0.00023879,2]
[372423676,1752639042165,-460.0,0.00023889,2]
[372423677,1752639042175,-1495.22,0.00023889,2]
[372423678,1752639042184,-497.92,0.00023894,2]
[372423679,1752639042192,-816.94,0.00023894,2]
[372423680,1752639042202,-460.0,0.00023894,2]
[372423681,1752639042211,-172.0,0.00023899,2]
[372423682,1752639042221,-1400.0746706,0.000239,2]
[372423683,1752639042230,-2055.41,0.00023931,2]
[372423684,1752639042240,-151.0,0.00023974,6]
[372423685,1752639042251,-151.0,0.00024,8]
[372423686,1752639042261,-520.85416667,0.00024,7]
[372423687,1752639042270,-560.0,0.00024023,2]
[372423688,1752639042279,-932.73494716,0.00024061,2]
[372423689,1752639042289,-172.0,0.00024088,2]
[372423690,1752639042299,-151.0,0.000241,6]
[372423691,1752639042309,-2010.77,0.00024109,2]
[372423692,1752639042319,-460.0,0.00024109,2]
[372423693,1752639042330,-888.46,0.00024109,2]
[372423694,1752639042350,-1511.64,0.00024109,2]
[372423695,1752639042359,-460.0,0.00024109,2]
[372423696,1752639042369,-1064.19,0.00024109,2]
[372423697,1752639042379,-3030.19,0.00024109,2]
[372423698,1752639042389,-985.51,0.00024109,2]
[372423699,1752639042398,-642.56,0.00024109,2]
[372423700,1752639042408,-172.0,0.00024153,2]
[372423701,1752639042418,-460.0,0.00024163,2]
[372423702,1752639042427,-1495.22,0.00024163,2]
[372423703,1752639042437,-497.92,0.00024168,2]
[372423704,1752639042447,-816.94,0.00024168,2]
[372423705,1752639042456,-460.0,0.00024168,2]
[372423706,1752639042466,-554.0,0.00024183,2]
[372423707,1752639042476,-172.0,0.00024194,2]
[372423708,1752639042485,-172.0,0.00024208,2]
[372423709,1752639042494,-151.0,0.0002423,6]
[372423710,1752639042506,-165.8,0.00024294,2]
[372423711,1752639042520,-163.0,0.000243,7]
[372423712,1752639042529,-163.0,0.000243,7]
[372423713,1752639042539,-163.0,0.000243,5]
[372423714,1752639042548,-163.0,0.000243,5]
[372423715,1752639042559,-163.0,0.000243,4]
[372423716,1752639042568,-167.5716574,0.000243,4]
[372423717,1752639042577,-1000.0,0.000243,2]
[372423718,1752639042587,-151.0,0.000243,7]
[372423719,1752639042598,-554.0,0.00024314,2]
[372423720,1752639042608,-970.562,0.00024321,2]
[372423721,1752639042618,-162.95973128,0.00024329,2]
[372423722,1752639042628,-1213.75983149,0.00024334,2]
[372423723,1752639042637,-223.0315306,0.00024339,2]
[372423724,1752639042646,-1003.9999861,0.00024382,2]
[372423726,1752639042655,-1500.0,0.00024382,2]
[372423727,1752639042665,-2010.77,0.00024383,2]
[372423728,1752639042675,-460.0,0.00024383,2]
[372423729,1752639042685,-888.46,0.00024383,2]
[372423730,1752639042695,-1511.64,0.00024383,2]
[372423731,1752639042705,-309.61583346,0.00024383,2]
[372423733,1752639042715,-1064.19,0.00024383,2]
[372423735,1752639042724,-3030.19,0.00024383,2]
[372423736,1752639042733,-985.51,0.00024383,2]
[372423737,1752639042742,-642.56,0.00024383,2]
[372423738,1752639042753,-151.0,0.000244,5]
[372423739,1752639042763,-26721.5,0.000244,2]
[372423740,1752639042773,-512.851558,0.00024401,8]
[372423741,1752639042783,-800.0,0.00024414,2]
[372423742,1752639042792,-450.2446545,0.00024437,2]
[372423743,1752639042802,-1495.22,0.00024437,2]
[372423745,1752639042813,-497.92,0.00024442,2]
[372423746,1752639042822,-816.94,0.00024442,2]
[372423747,1752639042832,-460.0,0.00024442,2]
[372423748,1752639042841,-151.0,0.00024485,7]
[372423749,1752639042850,-151.0,0.000245,10]
[372423750,1752639042859,-500.0,0.000245,14]
[372423751,1752639042868,-800.0,0.00024541,2]
[372423753,1752639042877,-660.0,0.0002457,2]
[372423754,1752639042887,-407.0,0.00024597,2]
[372423755,1752639042896,-21158.76,0.000246,7]
[372423756,1752639042906,-2010.77,0.00024657,2]
[372423757,1752639042916,-2868.17399867,0.00024657,2]
[372423758,1752639042926,-2599.48168663,0.00024657,2]
[372423759,1752639042935,-460.0,0.00024657,2]
[372423760,1752639042944,-888.46,0.00024657,2]
[372423761,1752639042953,-1511.64,0.00024657,2]
[372423762,1752639042962,-1064.19,0.00024657,2]
[372423763,1752639042971,-3030.19,0.00024657,2]
[372423765,1752639042981,-985.51,0.00024657,2]
[372423767,1752639042990,-642.56,0.00024657,2]
[372423769,1752639042998,-833.0751946,0.00024658,2]
[372423771,1752639043008,-400.76975278,0.00024658,7]
[372423773,1752639043017,-285.7056492,0.00024658,2]
[372423775,1752639043026,-2639.06787564,0.00024658,2]
[372423777,1752639043036,-170.10274382,0.000247,2]
[372423779,1752639043045,-1495.22,0.00024711,2]
[372423781,1752639043055,-497.92,0.00024716,2]
[372423782,1752639043064,-816.94,0.00024716,2]
[372423783,1752639043074,-460.0,0.00024716,2]
[372423784,1752639043083,-365.0,0.00024738,2]
[372423785,1752639043093,-151.0,0.00024741,7]
[372423786,1752639043102,-932.73494716,0.00024783,2]
[372423787,1752639043111,-805.81644846,0.0002479,2]
[372423788,1752639043120,-1213.75983149,0.0002479,2]
[372423789,1752639043130,-17664.72973427,0.0002479,3]
[372423790,1752639043139,-173.18161431,0.0002479,4]
[372423791,1752639043149,-173.18161431,0.0002479,4]
[372423792,1752639043159,-173.18,0.0002479,4]
[372423793,1752639043168,-151.53391252,0.0002479,4]
[372423794,1752639043177,-151.53391252,0.0002479,4]
[372423795,1752639043186,-151.53391252,0.0002479,4]
[372423796,1752639043195,-151.53391252,0.0002479,4]
[372423797,1752639043204,-151.53391252,0.0002479,4]
[372423798,1752639043213,-151.53391252,0.0002479,4]
[372423799,1752639043222,-151.53391252,0.0002479,4]
[372423800,1752639043231,-151.53,0.0002479,4]
[372423801,1752639043240,-175.45106239,0.0002479,4]
[372423802,1752639043249,-175.45106239,0.0002479,4]
[372423803,1752639043258,-175.45106239,0.0002479,4]
[372423804,1752639043268,-175.45106239,0.0002479,4]
[372423805,1752639043277,-175.45,0.0002479,4]
[372423806,1752639043286,-157.45608163,0.0002479,4]
[372423808,1752639043296,-157.45608163,0.0002479,4]
[372423810,1752639043305,-157.45608163,0.0002479,4]
[372423811,1752639043314,-157.45608163,0.0002479,4]
[372423812,1752639043322,-157.45608163,0.0002479,4]
[372423813,1752639043331,-157.45608163,0.0002479,4]
[372423815,1752639043340,-157.45608163,0.0002479,4]
[372423816,1752639043349,-157.45608163,0.0002479,4]
[372423817,1752639043358,-157.45608163,0.0002479,4]
[372423818,1752639043366,-157.45608163,0.0002479,4]
[372423819,1752639043375,-157.45608163,0.0002479,4]
[372423820,1752639043383,-157.45608163,0.0002479,4]
[372423821,1752639043392,-157.45,0.0002479,4]
[372423822,1752639043400,-160.49818141,0.00024795,3]
[372423823,1752639043410,-1751.0,0.00024795,3]
[372423824,1752639043425,-1751.0,0.00024795,3]
[372423825,1752639043435,-1751.0,0.00024795,3]
[372423826,1752639043444,-1751.0,0.00024795,3]
[372423827,1752639043453,-1751.0,0.00024795,3]
[372423828,1752639043462,-1751.0,0.00024795,3]
[372423829,1752639043471,-1751.0,0.00024795,3]
[372423830,1752639043479,-1751.0,0.00024795,3]
[372423831,1752639043488,-1751.0,0.00024795,3]
[372423832,1752639043498,-1751.0,0.00024795,3]
[372423833,1752639043508,-1751.0,0.00024795,3]
[372423834,1752639043520,-1751.0,0.00024795,3]
[372423835,1752639043529,-1751.0,0.00024795,3]
[372423836,1752639043538,-154.57262037,0.00024795,3]
[372423837,1752639043547,-1751.0,0.00024795,3]
[372423838,1752639043555,-1751.0,0.00024795,3]
[372423839,1752639043565,-1791.10004566,0.00024795,3]
[372423840,1752639043574,-318.0,0.00024795,3]
[372423841,1752639043591,-318.0,0.00024795,3]
[372423842,1752639043601,-327.95017534,0.00024795,3]
[372423843,1752639043611,-1000.0,0.000248,2]
[372423844,1752639043621,-520.85416667,0.000248,3]
[372423845,1752639043629,-168.0,0.00024805,2]
[372423846,1752639043638,-805.81644844,0.0002487,2]
[372423847,1752639043646,-150.64634875,0.00024873,2]
[372423848,1752639043655,-500.0,0.00024873,2]
[372423849,1752639043664,-48583.59305105,0.00024877,2]
[372423850,1752639043673,-276.27725604,0.00024877,2]
[372423851,1752639043681,-500.0,0.00024877,2]
[372423852,1752639043690,-500.0,0.00024877,2]
[372423853,1752639043699,-1104.0,0.00024877,2]
[372423854,1752639043708,-151.0,0.00024877,2]
[372423855,1752639043717,-500.0,0.00024877,2]
[372423856,1752639043725,-500.0,0.00024877,2]
[372423857,1752639043733,-151.0,0.00024877,2]
[372423858,1752639043742,-500.0,0.00024877,2]
[372423859,1752639043750,-500.0,0.00024877,2]
[372423860,1752639043759,-500.0,0.00024877,2]
[372423861,1752639043768,-151.0,0.00024877,2]
[372423862,1752639043776,-151.0,0.00024877,2]
[372423863,1752639043784,-282.59339304,0.00024877,2]
[372423864,1752639043793,-150.931128,0.00024888,2]
[372423865,1752639043802,-81505.29654276,0.0002489,4]
[372423866,1752639043901,-72422.00874748,0.0002489,4]
[372423867,1752639043963,-460.0,0.00019178,2]
[372423868,1752639043972,-460.0,0.00019231,2]
[372423869,1752639043981,-1820.47,0.00019232,2]
[372423870,1752639043990,-147.05924242,0.00019505,2]
[372423955,1752639047219,-366.52305814,0.00019178,2]
[372423956,1752639047229,-460.0,0.00019231,2]
[372423957,1752639047239,-1154.97,0.00019236,2]
[372423958,1752639047248,-312.94075758,0.00019505,2]
[372423959,1752639047258,-51.52661612,0.00019505,2]
[372423960,1752639062698,150.0,0.00017395,2]
[372423964,1752639131196,150.0,0.00017165,2]
[372423965,1752639131651,150.0,0.00017982,2]
[372423967,1752639162725,330.241595,0.00013699,2]
[372423968,1752639196943,150.0,0.0001714,2]
[372423969,1752639197340,150.0,0.00017956,2]
[372423970,1752639380502,165.0,0.00024658,60]
[372423971,1752639411511,150.0,0.0001717,2]
[372423972,1752639460716,1635.61955402,0.00027,120]
[372423973,1752639485896,150.0,0.00017204,2]
[372423974,1752639486296,150.0,0.00018023,2]
[372423976,1752639543337,310.66228627,0.00018103,3]
[372423977,1752639549309,5000.0,0.0001811,2]
[372423978,1752639560810,150.0,0.00017131,2]
[372423979,1752639567107,5000.0,0.0001811,2]
[372423980,1752639583473,5000.0,0.0001811,2]
[372423981,1752639600833,5000.0,0.0001811,2]
[372423982,1752639617112,460.0,0.0001811,2]
[372423983,1752639635086,150.0,0.0001718,2]
[372423984,1752639713198,150.0,0.00017187,2]
[372423985,1752639786089,150.0,0.00017089,2]
[372423986,1752639786541,150.0,0.00017902,2]
[372423987,1752639790646,3930.93870854,0.0001811,2]
[372423988,1752639835454,155.24475318,0.00018102,3]
[372423989,1752639858108,150.0,0.0001722,2]
[372423990,1752639914862,1480.11016535,0.0001811,2]
[372423991,1752639915523,-157.51717486,0.0001811,2]
[372423992,1752639920133,523.920189,0.00017801,2]
[372423993,1752639921040,-157.51717486,0.00018102,2]
[372423994,1752639937698,150.0,0.00015375,2]
[372423995,1752639938111,150.0,0.00016107,2]
[372423996,1752639938527,150.0,0.00016839,2]
[372423997,1752639940115,-38.27491297,0.00018102,2]
[372423998,1752639940137,-2161.41988008,0.0001811,2]
[372423999,1752639943958,-1196.0,0.0001811,2]
[372424000,1752639944207,-4.95277971,0.0001811,2]
[372424001,1752639944228,-300.0,0.00018202,2]
[372424002,1752639944250,-211.0,0.00018202,2]
[372424003,1752639944273,-1200.0,0.00018202,2]
[372424004,1752639944295,-71.01011416,0.00018202,2]
[372424005,1752639961552,157.51717486,0.000181,2]
[372424006,1752640003571,191.13391066,0.00017658,2]
[372424007,1752640012387,-183.0,0.00018102,2]
[372424008,1752640025114,-98.5196051,0.00018102,2]
[372424009,1752640025136,-300.0,0.00018201,2]
[372424010,1752640025158,-300.0,0.00018202,2]
[372424011,1752640025179,-356.3196173,0.00018202,2]
[372424012,1752640026083,-450.6803827,0.00018202,2]
[372424013,1752640026103,-500.0,0.00018202,2]
[372424014,1752640026125,-272.70295842,0.00018202,2]
[372424016,1752640036087,-227.29704158,0.00018202,2]
[372424017,1752640036108,-477.12288887,0.00018202,2]
[372424018,1752640036128,-500.0,0.00018202,2]
[372424019,1752640036149,-500.0,0.00018202,2]
[372424020,1752640036170,-500.0,0.00018202,2]
[372424021,1752640036191,-500.0,0.00018202,2]
[372424022,1752640036212,-500.0,0.00018202,2]
[372424023,1752640036234,-500.0,0.00018202,2]
[372424024,1752640036256,-500.0,0.00018202,2]
[372424025,1752640036276,-500.0,0.00018202,2]
[372424026,1752640036297,-500.0,0.00018202,2]
[372424027,1752640036316,-449.84942701,0.00018202,2]
[372424028,1752640036337,-500.0,0.00018202,2]
[372424029,1752640036359,-500.0,0.00018202,2]
[372424030,1752640036379,-500.0,0.00018202,2]
[372424031,1752640036400,-500.0,0.00018202,2]
[372424032,1752640036422,-154.34413996,0.00018202,2]
[372424033,1752640040102,-95.65586004,0.00018202,2]
[372424034,1752640040125,-457.52491571,0.00018202,2]
[372424035,1752640040144,-500.0,0.00018202,2]
[372424036,1752640040164,-500.0,0.00018202,2]
[372424037,1752640040184,-200.0,0.00018202,2]
[372424038,1752640040203,-7791.24306387,0.00018203,2]
[372424039,1752640093071,157.5171748,0.00017909,2]
[372424043,1752640213351,150.0,0.00015425,2]
[372424069,1752640232550,-720.0,0.00018196,2]
[372424070,1752640232560,-5152.91997666,0.00018197,2]
[372424071,1752640232573,-4847.08002334,0.00018197,2]
[372424072,1752640232583,-300.0,0.000182,2]
[372424073,1752640232592,-300.0,0.00018203,2]
[372424074,1752640232602,-250.0,0.00018203,2]
[372424075,1752640232612,-217.50276841,0.00018203,2]
[372424076,1752640232622,-150.63693914,0.00018204,2]
[372424077,1752640232634,-24749.36306086,0.00018204,2]
[372424078,1752640232644,-311.12770458,0.000189,2]
[372424079,1752640232654,-260.59832219,0.00019177,2]
[372424080,1752640232663,-460.0,0.00019178,2]
[372424082,1752640232673,-460.0,0.00019178,2]
[372424084,1752640232682,-460.0,0.00019178,2]
[372424086,1752640232692,-460.0,0.00019178,2]
[372424088,1752640232701,-463.7541981,0.00019178,2]
[372424090,1752640232711,-465.16201405,0.00019178,2]
[372424092,1752640232720,-460.0,0.00019178,2]
[372424094,1752640232730,-460.0,0.00019178,2]
[372424096,1752640232739,-460.0,0.00019178,2]
[372424098,1752640232748,-460.6514763,0.00019178,2]
[372424100,1752640232758,-460.0,0.00019178,2]
[372424101,1752640232768,-460.0,0.00019178,2]
[372424102,1752640232778,-517.59533431,0.00019178,2]
[372424103,1752640232787,-460.0,0.00019178,2]
[372424104,1752640232797,-460.0,0.00019178,2]
[372424105,1752640232807,-460.0,0.00019178,2]
[372424106,1752640232817,-244.88595795,0.00019178,2]
[372424107,1752640232826,-460.0,0.00019178,2]
[372424108,1752640232836,-460.0,0.00019178,2]
[372424109,1752640232847,-460.0,0.00019178,2]
[372424110,1752640232856,-460.0,0.00019178,2]
[372424111,1752640232866,-460.0,0.00019178,2]
[372424112,1752640232876,-463.30864532,0.00019178,2]
[372424113,1752640232886,-464.45555877,0.00019178,2]
[372424114,1752640232896,-460.0,0.00019178,2]
[372424115,1752640232907,-460.0,0.00019178,2]
[372424116,1752640232916,-460.0,0.00019178,2]
[372424117,1752640232926,-460.0,0.00019178,2]
[372424118,1752640232936,-460.0,0.00019178,2]
[372424119,1752640232946,-460.0,0.00019178,2]
[372424120,1752640232955,-460.0,0.00019178,2]
[372424121,1752640232965,-460.0,0.00019178,2]
[372424122,1752640232974,-460.0,0.00019178,2]
[372424123,1752640232982,-460.0,0.00019178,2]
[372424124,1752640232995,-460.0,0.00019178,2]
[372424125,1752640233004,-276.27725604,0.00019178,2]
[372424126,1752640233012,-460.0,0.00019178,2]
[372424127,1752640233021,-500.0,0.00019178,2]
[372424128,1752640233031,-460.0,0.00019178,2]
[372424129,1752640233041,-460.0,0.00019178,2]
[372424130,1752640233051,-460.0,0.00019178,2]
[372424131,1752640233060,-460.0,0.00019178,2]
[372424132,1752640233071,-472.87795561,0.00019178,2]
[372424133,1752640233081,-460.0,0.00019178,2]
[372424134,1752640233090,-462.2648309,0.00019178,2]
[372424135,1752640233100,-460.0,0.00019178,2]
[372424136,1752640233109,-460.0,0.00019178,2]
[372424137,1752640233119,-460.0,0.00019178,2]
[372424138,1752640233129,-460.0,0.00019178,2]
[372424139,1752640233139,-219.16960484,0.00019178,2]
[372424140,1752640233149,-460.0,0.00019178,2]
[372424141,1752640233158,-460.0,0.00019178,2]
[372424142,1752640233168,-460.0,0.00019178,2]
[372424143,1752640233177,-460.0,0.00019178,2]
[372424144,1752640233187,-460.0,0.00019178,2]
[372424145,1752640233196,-447.58832021,0.00019178,2]
[372424146,1752640233206,-460.0,0.00019178,2]
[372424147,1752640233215,-463.04511423,0.00019178,2]
[372424148,1752640233224,-460.0,0.00019178,2]
[372424149,1752640233234,-464.08702887,0.00019178,2]
[372424150,1752640233244,-460.0,0.00019178,2]
[372424151,1752640233254,-460.0,0.00019178,2]
[372424152,1752640233264,-460.72586002,0.00019178,2]
[372424153,1752640233274,-460.0,0.00019178,2]
[372424154,1752640233284,-460.0,0.00019178,2]
[372424155,1752640233294,-462.83857542,0.00019178,2]
[372424156,1752640233304,-585.96157153,0.00019178,2]
[372424157,1752640233314,-460.0,0.00019178,2]
[372424158,1752640233324,-460.0,0.00019178,2]
[372424159,1752640233334,-460.0,0.00019178,2]
[372424160,1752640233344,-460.0,0.00019178,2]
[372424161,1752640233354,-460.0,0.00019178,2]
[372424162,1752640233364,-462.36486291,0.00019178,2]
[372424163,1752640233373,-535.28924959,0.00019178,2]
[372424164,1752640233382,-460.0,0.00019178,2]
[372424165,1752640233392,-462.47681248,0.00019178,2]
[372424166,1752640233401,-460.0,0.00019178,2]
[372424167,1752640233412,-156.34302613,0.00019178,2]
[372424168,1752640233422,-460.0,0.00019178,2]
[372424169,1752640233432,-460.0,0.00019178,2]
[372424170,1752640233442,-460.0,0.00019178,2]
[372424171,1752640233451,-460.0,0.00019178,2]
[372424172,1752640233461,-460.0,0.00019178,2]
[372424173,1752640233471,-460.0,0.00019178,2]
[372424174,1752640233481,-460.0,0.00019178,2]
[372424175,1752640233491,-460.0,0.00019178,2]
[372424176,1752640233500,-460.0,0.00019178,2]
[372424177,1752640233510,-588.42174203,0.00019178,2]
[372424178,1752640233520,-460.0,0.00019178,2]
[372424179,1752640233530,-460.0,0.00019178,2]
[372424180,1752640233540,-460.0,0.00019178,2]
[372424181,1752640233549,-460.0,0.00019178,2]
[372424182,1752640233559,-151.0,0.00019178,2]
[372424183,1752640233569,-282.59339304,0.00019178,2]
[372424184,1752640233583,-460.0,0.00019178,2]
[372424185,1752640233593,-460.0,0.00019178,2]
[372424186,1752640233603,-460.0,0.00019178,2]
[372424187,1752640233613,-460.0,0.00019178,2]
[372424188,1752640233623,-460.0,0.00019178,2]
[372424189,1752640233632,-164.53,0.00019178,2]
[372424190,1752640233643,-460.0,0.00019178,2]
[372424191,1752640233652,-460.0,0.00019178,2]
[372424192,1752640233662,-460.0,0.00019178,2]
[372424193,1752640233672,-489.87,0.00019178,2]
[372424194,1752640233682,-287.89040133,0.00019178,2]
[372424195,1752640233692,-460.0,0.00019178,2]
[372424196,1752640233702,-289.34101334,0.00019178,2]
[372424197,1752640233712,-533.72606646,0.00019178,2]
[372424198,1752640233722,-460.0,0.00019178,2]
[372424199,1752640233731,-460.0,0.00019178,2]
[372424200,1752640233741,-460.0,0.00019178,2]
[372424201,1752640233751,-460.0,0.00019178,2]
[372424202,1752640233762,-460.0,0.00019178,2]
[372424203,1752640233772,-460.0,0.00019178,2]
[372424204,1752640233782,-460.0,0.00019178,2]
[372424205,1752640233792,-2936.0,0.00019178,2]
[372424206,1752640233803,-462.278472,0.00019178,2]
[372424207,1752640233813,-460.0,0.00019178,2]
[372424208,1752640233822,-460.0,0.00019178,2]
[372424209,1752640233832,-462.52444877,0.00019178,2]
[372424210,1752640233841,-460.0,0.00019178,2]
[372424211,1752640233851,-602.44,0.00019178,2]
[372424212,1752640233860,-461.46654204,0.00019178,2]
[372424213,1752640233870,-460.0,0.00019178,2]
[372424214,1752640233880,-460.0,0.00019178,2]
[372424215,1752640233889,-744.89,0.00019178,2]
[372424216,1752640233899,-1589.32,0.00019178,2]
[372424217,1752640233908,-460.0,0.00019178,2]
[372424218,1752640233917,-460.0,0.00019178,2]
[372424219,1752640233926,-460.0,0.00019178,2]
[372424220,1752640233936,-460.0,0.00019178,2]
[372424221,1752640233946,-460.0,0.00019178,2]
[372424222,1752640233955,-460.0,0.00019178,2]
[372424223,1752640233964,-460.0,0.00019178,2]
[372424224,1752640233973,-460.0,0.00019178,2]
[372424225,1752640233983,-979.0,0.00019178,2]
[372424226,1752640233998,-460.0,0.00019178,2]
[372424227,1752640234007,-460.0,0.00019178,2]
[372424228,1752640234019,-460.0,0.00019178,2]
[372424229,1752640234031,-460.0,0.00019178,2]
[372424230,1752640234041,-460.0,0.00019178,2]
[372424231,1752640234051,-1006.77,0.00019178,2]
[372424232,1752640234061,-460.0,0.00019178,2]
[372424233,1752640234073,-460.0,0.00019178,2]